fUSD/lending_fUSD_20260116
["ID","MTS","AMOUNT","RATE_DAILY","PERIOD"]
[402151472,1768553651163,-500.0,0.00037808,10]
[402151473,1768553651173,-500.0,0.00037808,10]
[402151474,1768553651182,-602.84,0.00037808,10]
[402151475,1768553651192,-681.64,0.00037808,10]
[402151476,1768553651201,-946.6,0.00037808,10]
[402151477,1768553651210,-982.01,0.00037808,10]
[402151478,1768553651220,-500.0,0.00037808,10]
[402151479,1768553651230,-160.93992853,0.00037808,10]
[402151480,1768553651240,-1431.59,0.00037808,10]
[402151481,1768553651249,-582.81,0.00037808,10]
[402151482,1768553651258,-500.0,0.00037808,10]
[402151483,1768553651267,-500.0,0.00037808,10]
[402151484,1768553651276,-643.11544983,0.00037808,10]
[402151485,1768553651285,-500.0,0.00037808,10]
[402151486,1768553651295,-872.15,0.00037808,10]
[402151487,1768553651304,-703.99,0.00037808,10]
[402151488,1768553651313,-548.64,0.00037808,10]
[402151489,1768553651322,-850.54,0.00037808,10]
[402151490,1768553651331,-1034.71,0.00037808,10]
[402151491,1768553651340,-500.0,0.00037808,10]
[402151492,1768553651368,-500.0,0.00037808,10]
[402151493,1768553651388,-500.0,0.00037808,10]
[402151494,1768553651408,-712.34,0.00037808,10]
[402151495,1768553651427,-1048.59,0.00037808,10]
[402151496,1768553651448,-500.0,0.00037808,10]
[402151497,1768553651467,-500.0,0.00037808,10]
[402151498,1768553651488,-500.0,0.00037808,10]
[402151499,1768553651508,-466.72295256,0.00037808,10]
[402151500,1768553651529,-797.78,0.00037808,10]
[402151501,1768553651552,-864.57,0.00037808,10]
[402151502,1768553651573,-500.0,0.00037808,10]
[402151503,1768553651595,-500.0,0.00037808,10]
[402151504,1768553651616,-500.0,0.00037808,10]
[402151505,1768553651636,-669.34,0.00037808,10]
[402151506,1768553651651,-500.0,0.00037808,10]
[402151507,1768553651661,-1695.98,0.00037808,10]
[402151508,1768553651672,-635.55205663,0.00037808,10]
[402151509,1768553651682,-500.0,0.00037808,10]
[402151510,1768553651692,-746.93,0.00037808,10]
[402151511,1768553651703,-710.63,0.00037808,10]
[402151512,1768553651713,-576.53,0.00037808,10]
[402151513,1768553651723,-551.55,0.00037808,10]
[402151514,1768553651732,-848.31,0.00037808,10]
[402151515,1768553651742,-635.29706808,0.00037808,10]
[402151516,1768553651751,-500.0,0.00037808,10]
[402151517,1768553651761,-500.0,0.00037808,10]
[402151518,1768553651770,-640.15,0.00037808,10]
[402151519,1768553651779,-893.03,0.00037808,10]
[402151520,1768553651789,-829.07,0.00037808,10]
[402151521,1768553651799,-500.0,0.00037808,10]
[402151522,1768553651809,-1044.65,0.00037808,2]
[402151523,1768553651818,-580.09,0.00037808,10]
[402151524,1768553651828,-2280.83,0.00037808,10]
[402151525,1768553651837,-950.38,0.00037808,10]
[402151526,1768553651846,-925.85,0.00037808,10]
[402151527,1768553651856,-926.38,0.00037808,10]
[402151528,1768553651865,-1091.37,0.00037808,10]
[402151529,1768553651875,-934.74,0.00037808,10]
[402151530,1768553651884,-1096.7,0.00037808,10]
[402151531,1768553651893,-500.0,0.00037808,120]
[402151532,1768553651903,-500.0,0.00037808,10]
[402151533,1768553651912,-500.0,0.00037808,10]
[402151534,1768553651922,-500.0,0.00037808,10]
[402151535,1768553651931,-500.0,0.00037808,10]
[402151536,1768553651941,-615.77,0.00037808,10]
[402151537,1768553651950,-694.36,0.00037808,10]
[402151538,1768553651960,-816.08,0.00037808,10]
[402151539,1768553651969,-703.54,0.00037808,10]
[402151540,1768553651979,-1150.42,0.00037808,10]
[402151541,1768553651988,-500.0,0.00037808,10]
[402151542,1768553651998,-658.36,0.00037808,10]
[402151543,1768553652008,-788.58,0.00037808,10]
[402151544,1768553652017,-578.18,0.00037808,10]
[402151545,1768553652028,-1428.02,0.00037808,10]
[402151546,1768553652037,-500.0,0.00037808,10]
[402151547,1768553652046,-705.82,0.00037808,10]
[402151548,1768553652055,-931.05,0.00037808,10]
[402151549,1768553652065,-577.64,0.00037808,10]
[402151550,1768553652074,-528.44,0.00037808,10]
[402151551,1768553652088,-500.0,0.00037808,10]
[402151552,1768553652101,-2108.45,0.00037808,10]
[402151553,1768553652111,-500.0,0.00037808,10]
[402151554,1768553652120,-1149.82,0.00037808,10]
[402151555,1768553652129,-500.0,0.00037808,10]
[402151556,1768553652138,-683.35,0.00037808,10]
[402151557,1768553652147,-500.0,0.00037808,10]
[402151558,1768553652156,-959.04,0.00037808,10]
[402151559,1768553652165,-500.0,0.00037808,10]
[402151560,1768553652174,-500.0,0.00037808,10]
[402151561,1768553652184,-700.17,0.00037808,10]
[402151562,1768553652193,-500.0,0.00037808,10]
[402151563,1768553652202,-500.0,0.00037808,10]
[402151564,1768553652212,-625.74,0.00037808,10]
[402151565,1768553652221,-500.0,0.00037808,10]
[402151566,1768553652230,-500.0,0.00037808,10]
[402151567,1768553652243,-500.0,0.00037808,10]
[402151568,1768553652252,-754.4,0.00037808,10]
[402151569,1768553652265,-500.0,0.00037808,10]
[402151570,1768553652276,-500.0,0.00037808,10]
[402151571,1768553652287,-737.5,0.00037808,10]
[402151572,1768553652298,-625.2,0.00037808,10]
[402151573,1768553652308,-641.84,0.00037808,10]
[402151574,1768553652319,-610.78,0.00037808,10]
[402151575,1768553652328,-544.89,0.00037808,10]
[402151576,1768553652340,-637.87,0.00037808,10]
[402151577,1768553652350,-523.76,0.00037808,10]
[402151578,1768553652362,-500.0,0.00037808,10]
[402151579,1768553652371,-500.0,0.00037808,10]
[402151580,1768553652384,-500.0,0.00037808,10]
[402151581,1768553652394,-551.65,0.00037808,10]
[402151582,1768553652408,-1594.08,0.00037808,10]
[402151583,1768553652419,-500.0,0.00037808,10]
[402151584,1768553652432,-500.0,0.00037808,10]
[402151585,1768553652443,-500.0,0.00037808,10]
[402151586,1768553652455,-500.0,0.00037808,10]
[402151587,1768553652469,-500.0,0.00037808,10]
[402151588,1768553652479,-796.44,0.00037808,10]
[402151589,1768553652492,-500.0,0.00037808,10]
[402151590,1768553652503,-500.0,0.00037808,10]
[402151591,1768553652515,-1146.06,0.00037808,10]
[402151592,1768553652530,-567.16,0.00037808,10]
[402151593,1768553652540,-517.33,0.00037808,10]
[402151594,1768553652556,-500.0,0.00037808,10]
[402151595,1768553652568,-522.75,0.00037808,10]
[402151596,1768553652578,-500.0,0.00037808,10]
[402151597,1768553652591,-500.0,0.00037808,10]
[402151598,1768553652601,-500.0,0.00037808,10]
[402151599,1768553652615,-751.2,0.00037808,10]
[402151600,1768553652625,-500.0,0.00037808,10]
[402151601,1768553652639,-662.29,0.00037808,10]
[402151602,1768553652652,-669.08,0.00037808,10]
[402151603,1768553652663,-500.0,0.00037808,10]
[402151604,1768553652679,-677.54,0.00037808,10]
[402151605,1768553652691,-1168.86,0.00037808,10]
[402151606,1768553652704,-1117.06,0.00037808,10]
[402151607,1768553652717,-1648.88,0.00037808,10]
[402151608,1768553652727,-636.52,0.00037808,10]
[402151609,1768553652740,-636.43,0.00037808,10]
[402151610,1768553652751,-575.94,0.00037808,10]
[402151611,1768553652760,-716.91,0.00037808,10]
[402151612,1768553652771,-876.77,0.00037808,10]
[402151613,1768553652781,-500.0,0.00037808,10]
[402151614,1768553652792,-500.0,0.00037808,10]
[402151615,1768553652802,-500.0,0.00037808,10]
[402151616,1768553652815,-990.78,0.00037808,10]
[402151617,1768553652825,-541.15,0.00037808,10]
[402151618,1768553652838,-1150.93,0.00037808,10]
[402151619,1768553652850,-909.88,0.00037808,10]
[402151620,1768553652860,-500.0,0.00037808,10]
[402151621,1768553652874,-903.48,0.00037808,10]
[402151622,1768553652885,-527.48,0.00037808,10]
[402151623,1768553652895,-500.0,0.00037808,10]
[402151624,1768553652904,-744.14,0.00037808,10]
[402151625,1768553652913,-507.96,0.00037808,10]
[402151626,1768553652922,-662.66,0.00037808,10]
[402151627,1768553652931,-690.13,0.00037808,10]
[402151628,1768553652940,-519.9,0.00037808,10]
[402151629,1768553652949,-1521.24,0.00037808,10]
[402151630,1768553652958,-823.6,0.00037808,10]
[402151631,1768553652968,-500.0,0.00037808,10]
[402151632,1768553652976,-500.0,0.00037808,10]
[402151633,1768553652985,-1331.43,0.00037808,10]
[402151634,1768553652995,-732.95,0.00037808,10]
[402151635,1768553653004,-1326.59,0.00037808,10]
[402151636,1768553653013,-1280.38,0.00037808,10]
[402151637,1768553653022,-500.0,0.00037808,10]
[402151638,1768553653031,-500.0,0.00037808,10]
[402151639,1768553653040,-791.99,0.00037808,10]
[402151640,1768553653049,-500.0,0.00037808,10]
[402151641,1768553653058,-512.72,0.00037808,10]
[402151642,1768553653067,-979.74,0.00037808,10]
[402151643,1768553653076,-500.0,0.00037808,10]
[402151644,1768553653085,-440.52682858,0.00037808,10]
[402151645,1768553653094,-644.37,0.00037808,10]
[402151646,1768553653104,-577.2,0.00037808,10]
[402151647,1768553653113,-970.71,0.00037808,10]
[402151648,1768553653123,-570.0,0.00037808,10]
[402151649,1768553653132,-500.0,0.00037808,10]
[402151650,1768553653143,-500.0,0.00037808,10]
[402151651,1768553653152,-500.0,0.00037808,10]
[402151652,1768553653163,-500.0,0.00037808,10]
[402151653,1768553653172,-751.52,0.00037808,10]
[402151654,1768553653181,-1015.29,0.00037808,10]
[402151655,1768553653190,-500.0,0.00037808,10]
[402151656,1768553653199,-518.25,0.00037808,10]
[402151657,1768553653208,-500.0,0.00037808,10]
[402151658,1768553653218,-685.85,0.00037808,10]
[402151659,1768553653227,-612.29,0.00037808,10]
[402151660,1768553653236,-500.0,0.00037808,10]
[402151661,1768553653245,-500.0,0.00037808,10]
[402151662,1768553653254,-806.51,0.00037808,10]
[402151663,1768553653263,-500.0,0.00037808,10]
[402151664,1768553653273,-500.0,0.00037808,10]
[402151665,1768553653283,-500.0,0.00037808,10]
[402151666,1768553653294,-695.39,0.00037808,10]
[402151667,1768553653304,-549.65,0.00037808,10]
[402151668,1768553653314,-607.83,0.00037808,10]
[402151669,1768553653323,-500.0,0.00037808,10]
[402151670,1768553653332,-1220.06,0.00037808,10]
[402151671,1768553653341,-1662.06,0.00037808,10]
[402151672,1768553653350,-500.0,0.00037808,10]
[402151673,1768553653359,-500.0,0.00037808,10]
[402151674,1768553653529,-262.24405206,0.00037808,10]
[402151675,1768553653539,-500.0,0.00037808,10]
[402151676,1768553653552,-500.0,0.00037808,10]
[402151677,1768553653561,-500.0,0.00037808,10]
[402151678,1768553653570,-1639.22,0.00037808,10]
[402151679,1768553653578,-500.0,0.00037808,10]
[402151680,1768553653590,-500.0,0.00037808,10]
[402151681,1768553653600,-500.0,0.00037808,10]
[402151682,1768553653609,-908.6,0.00037808,10]
[402151683,1768553653618,-500.0,0.00037808,10]
[402151684,1768553653629,-500.0,0.00037808,10]
[402151685,1768553653638,-1617.91,0.00037808,10]
[402151686,1768553653647,-816.75,0.00037808,10]
[402151687,1768553653655,-1143.12,0.00037808,10]
[402151688,1768553653665,-500.0,0.00037808,10]
[402151689,1768553653673,-500.0,0.00037808,10]
[402151690,1768553653682,-500.0,0.00037808,10]
[402151691,1768553653691,-500.0,0.00037808,10]
[402151692,1768553653700,-716.45,0.00037808,10]
[402151693,1768553653709,-500.0,0.00037808,10]
[402151694,1768553653718,-885.26,0.00037808,10]
[402151695,1768553653727,-1027.78,0.00037808,10]
[402151696,1768553653738,-500.0,0.00037808,10]
[402151697,1768553653747,-678.11,0.00037808,10]
[402151698,1768553653755,-1096.77,0.00037808,10]
[402151699,1768553653764,-500.0,0.00037808,10]
[402151700,1768553653773,-681.79,0.00037808,10]
[402151701,1768553653782,-702.08,0.00037808,10]
[402151702,1768553653791,-1477.47,0.00037808,10]
[402151703,1768553653800,-500.0,0.00037808,10]
[402151704,1768553653809,-500.0,0.00037808,10]
[402151705,1768553653818,-989.99,0.00037808,10]
[402151706,1768553653827,-676.3,0.00037808,10]
[402151707,1768553653836,-500.0,0.00037808,10]
[402151708,1768553653845,-500.0,0.00037808,10]
[402151709,1768553653855,-500.0,0.00037808,10]
[402151710,1768553653864,-912.84,0.00037808,10]
[402151711,1768553653873,-500.0,0.00037808,10]
[402151712,1768553653883,-807.54,0.00037808,10]
[402151713,1768553653892,-500.0,0.00037808,10]
[402151714,1768553653901,-591.47,0.00037808,10]
[402151715,1768553653910,-1293.68,0.00037808,10]
[402151716,1768553653921,-500.0,0.00037808,10]
[402151717,1768553653930,-500.0,0.00037808,10]
[402151718,1768553653939,-500.0,0.00037808,10]
[402151719,1768553653948,-500.0,0.00037808,10]
[402151720,1768553653957,-500.0,0.00037808,10]
[402151721,1768553653966,-500.0,0.00037808,10]
[402151722,1768553653975,-618.86,0.00037808,10]
[402151723,1768553653985,-834.67,0.00037808,10]
[402151724,1768553653994,-500.0,0.00037808,10]
[402151725,1768553654003,-500.0,0.00037808,10]
[402151726,1768553654012,-4949.68,0.00037808,10]
[402151727,1768553654022,-1730.65,0.00037808,10]
[402151728,1768553654031,-500.0,0.00037808,10]
[402151729,1768553654041,-418.71241351,0.00037808,10]
[402151730,1768553654051,-500.46,0.00037808,10]
[402151731,1768553654060,-930.98,0.00037808,10]
[402151732,1768553654070,-875.62,0.00037808,10]
[402151733,1768553654080,-500.0,0.00037808,10]
[402151734,1768553654089,-500.0,0.00037808,10]
[402151735,1768553654098,-500.0,0.00037808,10]
[402151736,1768553654107,-1041.0,0.00037808,10]
[402151737,1768553654117,-500.0,0.00037808,10]
[402151738,1768553654127,-500.0,0.00037808,10]
[402151739,1768553654136,-1262.31,0.00037808,10]
[402151740,1768553654145,-524.92,0.00037808,10]
[402151741,1768553654155,-591.83,0.00037808,10]
[402151742,1768553654164,-547.01406602,0.00037808,10]
[402151743,1768553654173,-614.68,0.00037808,10]
[402151744,1768553654183,-500.0,0.00037808,10]
[402151745,1768553654192,-790.99,0.00037808,10]
[402151746,1768553654201,-1848.72,0.00037808,10]
[402151747,1768553654210,-500.0,0.00037808,10]
[402151748,1768553654219,-353.65,0.00037808,2]
[402151749,1768553654228,-1044.21,0.00037808,10]
[402151750,1768553654237,-500.0,0.00037808,10]
[402151751,1768553654246,-500.0,0.00037808,10]
[402151752,1768553654255,-1947.44,0.00037808,10]
[402151753,1768553654266,-629.32,0.00037808,10]
[402151754,1768553654276,-1553.42,0.00037808,10]
[402151755,1768553654287,-1024.82,0.00037808,10]
[402151756,1768553654298,-500.0,0.00037808,10]
[402151757,1768553654308,-875.71,0.00037808,10]
[402151758,1768553654318,-795.66,0.00037808,10]
[402151759,1768553654327,-327.34360003,0.00037808,10]
[402151760,1768553654338,-1036.49,0.00037808,10]
[402151761,1768553654347,-1013.98,0.00037808,10]
[402151762,1768553654356,-562.25,0.00037808,10]
[402151763,1768553654366,-548.64,0.00037808,10]
[402151764,1768553654375,-543.96,0.00037808,10]
[402151765,1768553654384,-1422.5,0.00037808,10]
[402151766,1768553654393,-1126.68,0.00037808,10]
[402151767,1768553654402,-2121.76,0.00037808,10]
[402151768,1768553654411,-1905.23,0.00037808,10]
[402151769,1768553654420,-532.76,0.00037808,10]
[402151770,1768553654430,-502.52,0.00037808,10]
[402151771,1768553654440,-500.0,0.00037808,10]
[402151772,1768553654449,-500.0,0.00037808,10]
[402151773,1768553654461,-500.0,0.00037808,10]
[402151774,1768553654471,-540.07,0.00037808,10]
[402151775,1768553654481,-1016.35,0.00037808,10]
[402151776,1768553654489,-5056.94,0.00037808,10]
[402151777,1768553654499,-592.16,0.00037808,10]
[402151778,1768553654507,-889.56,0.00037808,10]
[402151779,1768553654518,-500.0,0.00037808,10]
[402151780,1768553654528,-1150.45,0.00037808,10]
[402151781,1768553654537,-1345.33,0.00037808,10]
[402151782,1768553654550,-648.45,0.00037808,10]
[402151783,1768553654560,-1052.14,0.00037808,10]
[402151784,1768553654569,-615.3240547,0.00037808,10]
[402151785,1768553654580,-990.43,0.00037808,10]
[402151786,1768553654591,-500.0,0.00037808,10]
[402151787,1768553654599,-877.08,0.00037808,10]
[402151788,1768553654609,-1245.81,0.00037808,10]
[402151789,1768553654622,-500.0,0.00037808,10]
[402151790,1768553654631,-1029.8,0.00037808,10]
[402151791,1768553654640,-665.86,0.00037808,10]
[402151792,1768553654649,-1298.7,0.00037808,10]
[402151793,1768553654658,-581.72,0.00037808,10]
[402151794,1768553654667,-850.69,0.00037808,10]
[402151795,1768553654678,-995.5,0.00037808,10]
[402151796,1768553654688,-500.0,0.00037808,10]
[402151797,1768553654697,-1075.5,0.00037808,10]
[402151798,1768553654706,-500.0,0.00037808,10]
[402151799,1768553654714,-519.23,0.00037808,10]
[402151800,1768553654725,-529.03,0.00037808,10]
[402151801,1768553654734,-716.08,0.00037808,10]
[402151802,1768553654742,-500.0,0.00037808,10]
[402151803,1768553654751,-1363.31,0.00037808,10]
[402151804,1768553654760,-598.71,0.00037808,10]
[402151805,1768553654769,-1221.02,0.00037808,10]
[402151806,1768553654777,-1064.34,0.00037808,10]
[402151807,1768553654786,-823.04,0.00037808,10]
[402151808,1768553654795,-500.0,0.00037808,10]
[402151809,1768553654805,-500.0,0.00037808,10]
[402151810,1768553654814,-2853.19,0.00037808,10]
[402151811,1768553654824,-500.0,0.00037808,10]
[402151812,1768553654833,-549.28,0.00037808,10]
[402151813,1768553654843,-500.0,0.00037808,10]
[402151814,1768553654852,-913.43,0.00037808,10]
[402151815,1768553654861,-500.0,0.00037808,10]
[402151816,1768553654869,-591.9,0.00037808,10]
[402151817,1768553654879,-500.0,0.00037808,10]
[402151818,1768553654888,-2393.97,0.00037808,10]
[402151819,1768553654897,-500.0,0.00037808,10]
[402151820,1768553654906,-2257.21,0.00037808,10]
[402151821,1768553654916,-589.47,0.00037808,10]
[402151822,1768553654925,-805.83,0.00037808,10]
[402151823,1768553654934,-546.1,0.00037808,10]
[402151824,1768553654943,-500.0,0.00037808,10]
[402151825,1768553654952,-500.0,0.00037808,10]
[402151826,1768553654961,-1412.18,0.00037808,10]
[402151827,1768553654970,-500.0,0.00037808,10]
[402151828,1768553654979,-500.0,0.00037808,10]
[402151829,1768553654989,-500.0,0.00037808,10]
[402151830,1768553654998,-337.21526254,0.00037808,120]
[402151831,1768553655007,-712.99,0.00037808,10]
[402151832,1768553655017,-661.07,0.00037808,10]
[402151833,1768553655026,-732.11,0.00037808,10]
[402151834,1768553655037,-693.86,0.00037808,10]
[402151835,1768553655046,-1182.17,0.00037808,10]
[402151836,1768553655055,-713.12,0.00037808,10]
[402151837,1768553655064,-714.22,0.00037808,10]
[402151838,1768553655073,-652.47,0.00037808,10]
[402151839,1768553655082,-652.5,0.00037808,10]
[402151840,1768553655091,-1245.62,0.00037808,10]
[402151841,1768553655101,-203.29263674,0.00037808,10]
[402151842,1768553655111,-500.0,0.00037808,10]
[402151843,1768553655120,-500.0,0.00037808,10]
[402151844,1768553655130,-1497.09,0.00037808,10]
[402151845,1768553655139,-1210.4,0.00037808,10]
[402151846,1768553655151,-1212.59,0.00037808,10]
[402151847,1768553655160,-941.66,0.00037808,10]
[402151848,1768553655169,-1223.9,0.00037808,10]
[402151849,1768553655184,-500.0,0.00037808,10]
[402151850,1768553655194,-1292.5,0.00037808,10]
[402151851,1768553655203,-1141.45,0.00037808,10]
[402151852,1768553655212,-885.86,0.00037808,10]
[402151853,1768553655220,-520.6,0.00037808,10]
[402151854,1768553655230,-3901.38,0.00037808,10]
[402151855,1768553655240,-532.57,0.00037808,10]
[402151856,1768553655249,-1219.5,0.00037808,10]
[402151857,1768553655259,-2909.8,0.00037808,10]
[402151858,1768553655269,-858.87,0.00037808,10]
[402151859,1768553655278,-500.0,0.00037808,10]
[402151860,1768553655288,-544.68,0.00037808,10]
[402151861,1768553655297,-993.01,0.00037808,10]
[402151862,1768553655308,-500.0,0.00037808,10]
[402151863,1768553655318,-1760.07,0.00037808,10]
[402151864,1768553655327,-553.74,0.00037808,10]
[402151865,1768553655336,-1228.85,0.00037808,10]
[402151866,1768553655345,-500.0,0.00037808,10]
[402151867,1768553655354,-1541.19,0.00037808,10]
[402151868,1768553655363,-245.63345822,0.00037808,10]
[402151869,1768553655372,-599.03,0.00037808,10]
[402151870,1768553655381,-1004.55,0.00037808,10]
[402151871,1768553655392,-1256.3,0.00037808,10]
[402151872,1768553655401,-722.08,0.00037808,10]
[402151873,1768553655411,-368.11094589,0.00037808,10]
[402151874,1768553655421,-1627.41,0.00037808,10]
[402151875,1768553655430,-999.49,0.00037808,10]
[402151876,1768553655439,-1143.9,0.00037808,10]
[402151877,1768553655449,-1224.65,0.00037808,10]
[402151878,1768553655460,-500.0,0.00037808,10]
[402151879,1768553655469,-560.6,0.00037808,10]
[402151880,1768553655478,-1155.7,0.00037808,10]
[402151881,1768553655489,-500.0,0.00037808,10]
[402151882,1768553655499,-614.31,0.00037808,10]
[402151883,1768553655508,-2192.51,0.00037808,10]
[402151884,1768553655518,-637.11,0.00037808,10]
[402151885,1768553655528,-2225.78,0.00037808,10]
[402151886,1768553655538,-500.0,0.00037808,10]
[402151887,1768553655552,-758.24,0.00037808,10]
[402151888,1768553655562,-2013.58,0.00037808,10]
[402151889,1768553655573,-500.0,0.00037808,10]
[402151890,1768553655583,-2864.87,0.00037808,10]
[402151891,1768553655594,-808.72,0.00037808,10]
[402151892,1768553655604,-1567.87,0.00037808,10]
[402151893,1768553655616,-518.17,0.00037808,10]
[402151894,1768553655626,-1811.28,0.00037808,10]
[402151895,1768553655636,-558.81,0.00037808,10]
[402151896,1768553655646,-1071.23,0.00037808,10]
[402151897,1768553655657,-659.01,0.00037808,10]
[402151898,1768553655668,-866.89,0.00037808,10]
[402151899,1768553655678,-1032.65,0.00037808,10]
[402151900,1768553655688,-759.31,0.00037808,10]
[402151901,1768553655699,-637.41,0.00037808,10]
[402151902,1768553655708,-1020.76,0.00037808,10]
[402151903,1768553655719,-1999.0,0.00037808,120]
[402151904,1768553655728,-1128.16,0.00037808,10]
[402151905,1768553655737,-547.39,0.00037808,10]
[402151906,1768553655747,-7210.62,0.00037808,10]
[402151907,1768553655757,-5211.07,0.00037808,10]
[402151908,1768553655767,-1681.96,0.00037808,10]
[402151909,1768553655777,-729.24,0.00037808,10]
[402151910,1768553655787,-500.0,0.00037808,10]
[402151911,1768553655796,-5144.07,0.00037808,10]
[402151912,1768553655805,-1064.3,0.00037808,10]
[402151913,1768553655815,-521.48,0.00037808,10]
[402151914,1768553655825,-532.27,0.00037808,10]
[402151915,1768553655834,-270.64766543,0.00037808,10]
[402151916,1768553655844,-1000.95,0.00037808,10]
[402151917,1768553655854,-1000.0,0.00037808,10]
[402151918,1768553655864,-672.3,0.00037808,10]
[402151919,1768553655874,-2351.16,0.00037808,10]
[402151920,1768553655884,-679.92,0.00037808,10]
[402151921,1768553655894,-642.7,0.00037808,10]
[402151922,1768553655903,-1048.19,0.00037808,10]
[402151923,1768553655914,-500.0,0.00037808,10]
[402151924,1768553655923,-2044.82,0.00037808,10]
[402151925,1768553655934,-500.0,0.00037808,10]
[402151926,1768553655945,-735.56,0.00037808,10]
[402151927,1768553655955,-804.46,0.00037808,10]
[402151928,1768553655965,-500.0,0.00037808,10]
[402151929,1768553655975,-793.57,0.00037808,10]
[402151930,1768553655985,-283.63081512,0.00037808,10]
[402151931,1768553655997,-500.0,0.00037808,10]
[402151932,1768553656008,-2221.23,0.00037808,10]
[402151933,1768553656018,-1159.07,0.00037808,10]
[402151934,1768553656029,-580.85,0.00037808,10]
[402151935,1768553656040,-941.49,0.00037808,10]
[402151936,1768553656051,-599.94,0.00037808,10]
[402151937,1768553656061,-500.0,0.00037808,10]
[402151938,1768553656071,-677.99,0.00037808,10]
[402151939,1768553656080,-1202.41,0.00037808,10]
[402151940,1768553656091,-2033.16,0.00037808,10]
[402151941,1768553656101,-2114.42,0.00037808,10]
[402151942,1768553656111,-1524.13,0.00037808,10]
[402151943,1768553656120,-953.55,0.00037808,10]
[402151944,1768553656129,-1013.89,0.00037808,10]
[402151945,1768553656139,-556.39,0.00037808,10]
[402151946,1768553656149,-500.0,0.00037808,10]
[402151947,1768553656158,-1302.19,0.00037808,10]
[402151948,1768553656168,-593.7,0.00037808,10]
[402151949,1768553656177,-859.25,0.00037808,10]
[402151950,1768553656187,-623.79,0.00037808,10]
[402151951,1768553656197,-1282.3,0.00037808,10]
[402151952,1768553656207,-500.0,0.00037808,10]
[402151953,1768553656217,-500.0,0.00037808,10]
[402151954,1768553656226,-1084.77,0.00037808,10]
[402151955,1768553656236,-500.0,0.00037808,10]
[402151956,1768553656245,-500.0,0.00037808,10]
[402151957,1768553656256,-606.36,0.00037808,10]
[402151958,1768553656265,-500.0,0.00037808,10]
[402151959,1768553656275,-781.44,0.00037808,10]
[402151960,1768553656286,-616.11,0.00037808,10]
[402151961,1768553656296,-500.0,0.00037808,10]
[402151962,1768553656306,-907.52,0.00037808,10]
[402151963,1768553656315,-731.99,0.00037808,10]
[402151964,1768553656325,-849.36,0.00037808,10]
[402151965,1768553656334,-500.0,0.00037808,10]
[402151966,1768553656343,-643.32,0.00037808,10]
[402151967,1768553656352,-1477.23,0.00037808,10]
[402151968,1768553656361,-500.0,0.00037808,10]
[402151969,1768553656370,-823.29,0.00037808,10]
[402151970,1768553656392,-802.79,0.00037808,10]
[402151971,1768553656402,-725.02,0.00037808,10]